bitfinex/quotes_SOLUSD_20241029
["timestamp","ask_amount","ask_price","bid_price","bid_amount"]
[1730210836787,39.4506836,180.04,180.02,0.1]
[1730210837376,39.4506836,180.11,180.07,0.1]
[1730210837682,5.5509,180.15,180.07,0.1]
[1730210837683,39.4506836,180.1,180.07,0.1]
[1730210838488,39.4506836,180.09,180.06,0.1]
[1730210838690,39.4506836,180.08,180.06,0.1]
[1730210838890,39.4506836,180.11,180.07,0.1]
[1730210839185,39.4506836,180.11,180.05,39.4506836]
[1730210839186,39.4506836,180.14,180.1,0.1]
[1730210839387,39.4506836,180.13,180.1,0.1]
[1730210839595,39.4506836,180.12,180.1,0.1]
[1730210840170,39.4506836,180.11,180.06,0.1]
[1730210840398,39.4506836,180.11,180.05,20.0]
[1730210840399,39.4506836,180.1,180.07,0.1]
[1730210840577,39.4506836,180.11,180.09,0.1]
[1730210841898,39.4506836,180.1,180.09,0.1]
[1730210842170,39.4506836,180.1,180.06,0.1]
[1730210842370,39.4506836,180.07,180.05,0.1]
[1730210842571,39.4506836,180.06,180.04,0.1]
[1730210842799,39.4506836,180.05,180.04,0.1]
[1730210845088,39.4506836,180.05,180.0,0.1]
[1730210845292,39.4506836,180.02,180.01,0.1]
[1730210846379,39.4506836,180.02,179.99,0.1]
[1730210846602,39.4506836,180.0,179.99,0.1]
[1730210847205,39.4506836,180.0,179.98,0.1]
[1730210847709,39.4506836,179.99,179.97,7.35066334]
[1730210848021,39.4506836,179.98,179.92,0.1]
[1730210848301,39.4506836,179.98,179.88,5.559]
[1730210848302,15.7911,180.0,179.93,0.1]
[1730210848492,39.4506836,179.94,179.91,0.1]
[1730210848684,39.4506836,179.92,179.91,0.1]
[1730210850588,39.4506836,179.93,179.91,5.6583]
[1730210850789,39.4506836,179.93,179.92,0.1]
[1730210850983,39.4506836,179.94,179.93,0.1]
[1730210851313,39.4506836,179.98,179.97,0.1]
[1730210851611,39.4506836,179.99,179.97,0.1]
[1730210851807,39.4506836,179.98,179.94,0.1]
[1730210852012,39.4506836,179.95,179.92,0.1]
[1730210852187,39.4506836,179.93,179.92,0.1]
[1730210854183,39.4506836,179.93,179.9,0.1]
[1730210854486,39.4506836,179.91,179.9,0.1]
[1730210855502,39.4506836,179.91,179.86,7.45066334]
[1730210855697,39.4506836,179.87,179.84,0.1]
[1730210855903,5.558,179.93,179.86,0.1]
[1730210856097,5.558,179.93,179.84,0.1]
[1730210856410,39.4506836,179.85,179.83,0.1]
[1730210856591,39.4506836,179.84,179.83,0.1]
[1730210858009,39.4506836,179.86,179.85,0.1]
[1730210859110,39.4506836,179.86,179.84,0.1]
[1730210859303,39.4506836,179.85,179.84,0.1]
[1730210859819,39.4506836,179.85,179.82,0.1]
[1730210860017,39.4506836,179.83,179.82,0.1]
[1730210861218,39.4506836,179.84,179.83,0.1]
[1730210861599,39.4506836,179.85,179.84,0.1]
[1730210861912,39.4506836,179.85,179.82,0.1]
[1730210862119,39.4506836,179.83,179.82,0.1]
[1730210862812,39.4506836,179.83,179.81,0.1]
[1730210863112,39.4506836,179.82,179.81,0.1]
[1730210864507,39.4506836,179.82,179.79,0.1]
[1730210864711,39.4506836,179.8,179.79,0.1]
[1730210865312,39.4506836,179.8,179.77,0.1]
[1730210865503,39.4506836,179.78,179.76,0.1]
[1730210865708,39.4506836,179.77,179.76,0.1]
[1730210866014,39.4506836,179.77,179.73,20.0702412]
[1730210866015,39.4506836,179.77,179.75,0.1]
[1730210866216,23.776884,179.83,179.76,0.1]
[1730210866721,39.4506836,179.77,179.76,0.1]
[1730210867014,5.79991904,179.82,179.81,0.1]
[1730210867219,0.1,179.89,179.81,0.1]
[1730210867593,5.80059845,179.87,179.83,0.1]
[1730210867792,5.80059845,179.87,179.84,0.1]
[1730210868016,39.4506836,179.87,179.86,0.1]
[1730210869004,39.4506836,179.87,179.85,0.1]
[1730210869324,39.4506836,179.86,179.85,0.1]
[1730210869896,39.4506836,179.9,179.88,0.1]
[1730210870098,39.4506836,179.91,179.88,0.1]
[1730210870516,22.5626,179.96,179.9,0.1]
[1730210870517,39.4506836,179.92,179.9,0.1]
[1730210870823,39.4506836,179.93,179.91,0.1]
[1730210871020,39.4506836,179.95,179.94,0.1]
[1730210871220,39.4506836,179.96,179.94,0.1]
[1730210871402,39.4506836,179.95,179.94,0.1]
[1730210871717,39.4506836,179.95,179.88,20.0]
[1730210871718,39.4506836,179.95,179.92,0.1]
[1730210871917,27.0371,180.01,179.91,0.1]
[1730210871918,39.4506836,179.93,179.91,0.1]
[1730210872301,39.4506836,179.94,179.93,0.1]
[1730210872916,39.4506836,179.95,179.94,0.1]
[1730210874901,39.4506836,179.95,179.91,0.1]
[1730210875113,39.4506836,179.92,179.91,0.1]
[1730210875617,23.876884,180.0,179.96,0.1]
[1730210875811,23.876884,180.0,179.95,0.1]
[1730210876000,23.776884,179.98,179.95,0.1]
[1730210876200,39.4506836,179.96,179.95,0.1]
[1730210876398,23.776884,179.95,179.92,0.1]
[1730210876598,39.4506836,179.93,179.92,0.1]
[1730210876799,39.4506836,179.93,179.89,0.1]
[1730210877012,39.4506836,179.9,179.89,0.1]
[1730210878719,39.4506836,179.9,179.86,0.1]
[1730210878924,39.4506836,179.87,179.85,0.1]
[1730210879102,39.4506836,179.86,179.85,0.1]
[1730210880206,39.4506836,179.86,179.83,0.1]
[1730210880407,39.4506836,179.84,179.83,0.1]
[1730210880796,39.4506836,179.84,179.82,0.1]
[1730210881021,39.4506836,179.83,179.82,0.1]
[1730210881597,23.776884,179.82,179.8,0.1]
[1730210881795,39.4506836,179.81,179.8,0.1]
[1730210882016,39.4506836,179.82,179.8,0.1]
[1730210882217,39.4506836,179.83,179.81,0.1]
[1730210882420,23.776884,179.89,179.82,0.1]
[1730210882723,29.335884,179.89,179.84,0.1]
[1730210883429,39.4506836,179.85,179.84,0.1]
[1730210883726,39.4506836,179.85,179.81,0.1]
[1730210883930,39.4506836,179.82,179.81,0.1]
[1730210884104,23.776884,179.81,179.77,0.1]
[1730210884407,39.4506836,179.78,179.77,0.1]
[1730210885197,23.776884,179.77,179.75,0.1]
[1730210885402,39.4506836,179.76,179.75,0.1]
[1730210885623,39.4506836,179.76,179.73,0.5968412]
[1730210885826,0.1,179.77,179.73,0.5968412]
[1730210885827,63.2275676,179.74,179.73,0.5968412]
[1730210886198,63.3275676,179.74,179.73,0.5968412]
[1730210886401,69.12757805,179.74,179.73,0.5968412]
[1730210887006,69.02757805,179.74,179.73,0.5968412]
[1730210887205,69.12757805,179.74,179.73,0.5968412]
[1730210887606,5.80001045,179.74,179.73,0.6968412]
[1730210887802,39.4506836,179.77,179.76,0.1]
[1730210889625,0.1,179.84,179.78,0.1]
[1730210889626,39.4506836,179.79,179.78,0.1]
[1730210890628,39.4506836,179.83,179.82,0.1]
[1730210890837,39.4506836,179.85,179.84,0.1]
[1730210891155,39.4506836,179.87,179.86,0.1]
[1730210891307,0.1,179.93,179.86,0.1]
[1730210891726,5.79379443,179.92,179.86,0.1]
[1730210891930,39.4506836,179.87,179.86,0.1]
[1730210892435,39.4506836,179.87,179.84,0.1]
[1730210892624,39.4506836,179.85,179.84,0.1]
[1730210893406,39.4506836,179.85,179.82,0.1]
[1730210893644,39.4506836,179.83,179.82,0.1]
[1730210894505,39.4506836,179.83,179.81,0.1]
[1730210894707,39.4506836,179.82,179.81,0.1]
[1730210895129,39.4506836,179.82,179.8,0.1]
[1730210895334,39.4506836,179.81,179.8,0.1]
[1730210895533,39.4506836,179.81,179.78,0.1]
[1730210895833,23.876884,179.85,179.8,0.1]
[1730210896540,39.4506836,179.81,179.77,0.1]
[1730210896832,39.4506836,179.78,179.77,0.1]
[1730210898419,39.4506836,179.8,179.78,0.1]
[1730210898742,6.274,179.86,179.79,0.1]
[1730210898940,11.8338,179.86,179.81,0.1]
[1730210899140,11.9338,179.86,179.81,0.1]
[1730210899914,39.4506836,179.82,179.81,0.1]
[1730210900309,39.4506836,179.82,179.79,0.1]
[1730210900530,39.4506836,179.8,179.79,0.1]
[1730210902816,39.4506836,179.8,179.76,0.1]
[1730210903015,39.4506836,179.77,179.76,0.1]
[1730210903337,39.4506836,179.77,179.73,0.5968412]
[1730210903637,0.1,179.76,179.73,0.5968412]
[1730210903844,0.1,179.75,179.73,0.5968412]
[1730210904010,6.2738,179.77,179.73,0.5968412]
[1730210904011,39.5506836,179.74,179.73,0.5968412]
[1730210904541,39.5506836,179.74,179.51,5.5666]
[1730210904542,0.1,179.72,179.67,0.1]
[1730210904721,39.4506836,179.68,179.67,0.1]
[1730210905036,6.4546,179.67,179.59,13.9199]
[1730210905242,6.4546,179.67,179.55,0.5968412]
[1730210905243,0.1,179.57,179.55,0.5968412]
[1730210905452,39.4506836,179.56,179.55,0.5968412]
[1730210906351,39.4506836,179.56,179.46,13.9299]
[1730210906653,39.4506836,179.47,179.43,6.1876]
[1730210906945,39.4506836,179.44,179.41,36.1246]
[1730210907441,39.4506836,179.47,179.42,0.1]
[1730210907629,39.4506836,179.46,179.42,0.1]
[1730210908114,39.4506836,179.47,179.43,0.1]
[1730210908318,39.4506836,179.48,179.44,0.1]
[1730210908518,39.4506836,179.48,179.44,20.0]
[1730210908953,39.4506836,179.46,179.44,19.505]
[1730210909122,39.4506836,179.47,179.45,20.0]
[1730210909868,39.4506836,179.46,179.41,16.6174]
[1730210910143,39.4506836,179.46,179.39,67.4223836]
[1730210910144,39.4506836,179.42,179.39,13.9356]
[1730210910352,39.4506836,179.4,179.39,13.9356]
[1730210911219,39.4506836,179.4,179.38,0.5968412]
[1730210911423,39.4506836,179.39,179.38,6.1714412]
[1730210911721,34.4506836,179.39,179.38,0.5968412]
[1730210914440,0.1,179.34,179.17,0.1]
[1730210914648,39.4506836,179.21,179.2,14.5471412]
[1730210914817,39.4506836,179.22,179.2,14.5471412]
[1730210915218,39.4506836,179.24,179.2,14.5471412]
[1730210915459,39.4506836,179.27,179.21,39.5506836]
[1730210915818,39.4506836,179.24,179.2,14.5471412]
[1730210916021,39.4506836,179.25,179.2,53.9978248]
[1730210916222,39.4506836,179.26,179.2,54.0978248]
[1730210916640,39.4506836,179.26,179.21,39.5506836]
[1730210916821,39.4506836,179.25,179.21,20.1]
[1730210917018,39.4506836,179.26,179.21,20.1]
[1730210917221,39.4506836,179.26,179.23,20.0]
[1730210917644,39.4506836,179.24,179.23,20.0]
[1730210917852,39.4506836,179.24,179.2,0.5968412]
[1730210918037,39.4506836,179.21,179.2,6.1771412]
[1730210918343,39.4506836,179.22,179.2,20.1279412]
[1730210918522,26.91686755,179.21,179.2,20.1279412]
[1730210918730,26.91686755,179.21,179.2,14.5476412]
[1730210918938,26.91686755,179.21,179.2,0.5968412]
[1730210922821,26.91686755,179.21,179.2,6.1771412]
[1730210924823,32.71051084,179.25,179.21,20.0]
[1730210925045,26.91686755,179.25,179.21,20.0]
[1730210925248,26.91686755,179.24,179.21,20.0]
[1730210925942,26.91686755,179.22,179.2,20.1279412]
[1730210926153,26.91686755,179.21,179.2,0.5968412]
[1730210927131,53.8337351,179.21,179.2,0.5968412]
[1730210927762,53.8337351,179.21,179.11,27.9153]
[1730210927763,26.91686755,179.18,179.15,19.5365]
[1730210928057,26.91686755,179.16,179.11,13.9572]
[1730210928245,26.91686755,179.13,179.11,13.9572]
[1730210928435,26.91686755,179.12,179.11,13.9572]
[1730210929645,26.91686755,179.19,179.11,13.9572]
[1730210929646,26.91686755,179.13,179.11,13.9572]
[1730210929947,6.2191,179.26,179.12,20.0]
[1730210930132,26.91686755,179.16,179.12,20.0]
[1730210930746,53.8337351,179.13,179.08,0.2346122]
[1730210930952,26.91686755,179.09,179.08,0.2346122]
[1730210931338,26.91686755,179.09,179.02,27.9289]
[1730210931527,26.91686755,179.1,179.03,5.5856]
[1730210931728,26.91686755,179.04,178.99,47.4874]
[1730210931939,26.91686755,179.0,178.99,47.4874]
[1730210932142,26.91686755,179.0,178.95,0.1]
[1730210932143,26.91686755,179.0,178.95,13.9699]
[1730210932346,26.91686755,179.01,178.95,13.9699]
[1730210932347,26.91686755,178.96,178.95,13.9699]
[1730210932658,26.91686755,178.97,178.95,13.9699]
[1730210933150,6.0413,179.14,178.99,0.2]
[1730210933362,26.91686755,179.05,179.0,27.11686755]
[1730210933555,26.91686755,179.06,179.03,0.1]
[1730210934150,26.91686755,179.04,179.01,0.2]
[1730210934447,26.91686755,179.1,179.01,0.2]
[1730210934448,26.91686755,179.05,179.01,0.2]
[1730210934756,26.91686755,179.05,179.03,20.0]
[1730210935057,26.91686755,179.07,179.03,20.0]
[1730210935544,26.91686755,179.08,179.03,20.0]
[1730210935843,26.91686755,179.07,179.03,20.0]
[1730210936448,26.91686755,179.08,179.03,20.0]
[1730210936638,26.91686755,179.11,179.06,26.91686755]
[1730210936953,26.91686755,179.1,179.05,46.91686755]
[1730210937155,26.91686755,179.1,179.05,20.0]
[1730210937525,5.77200334,179.12,179.07,46.91686755]
[1730210937526,32.68887089,179.12,179.07,46.91686755]
[1730210937840,26.91686755,179.13,179.09,20.0]
[1730210938044,26.91686755,179.14,179.09,46.91686755]
[1730210938342,26.91686755,179.14,179.09,20.0]
[1730210938552,26.91686755,179.18,179.13,74.36826755]
[1730210938754,26.91686755,179.15,179.13,19.5388]
[1730210939143,26.91686755,179.17,179.13,19.5388]
[1730210939433,26.91686755,179.17,179.14,20.0]
[1730210939634,26.91686755,179.18,179.14,20.0]
[1730210940332,26.91686755,179.19,179.14,20.0]
[1730210940529,26.91686755,179.2,179.15,46.45346755]
[1730210940853,15.0266,179.24,179.16,20.0]
[1730210940854,26.91686755,179.21,179.16,20.0]
[1730210941038,26.91686755,179.24,179.19,26.91686755]
[1730210941239,26.91686755,179.25,179.19,26.91686755]
[1730210941455,26.91686755,179.25,179.2,20.0]
[1730210941634,26.91686755,179.23,179.18,26.91686755]
[1730210941834,26.91686755,179.24,179.19,20.0]
[1730210942134,26.91686755,179.22,179.19,20.0]
[1730210942352,26.91686755,179.2,179.15,47.4461]
[1730210942548,26.91686755,179.19,179.16,20.0]
[1730210942763,26.91686755,179.19,179.17,19.5344]
[1730210943137,26.91686755,179.28,179.17,19.5344]
[1730210943138,26.91686755,179.21,179.17,47.4408]
[1730210943340,26.91686755,179.24,179.19,20.0]
[1730210943542,26.91686755,179.23,179.19,20.0]
[1730210943749,26.91686755,179.2,179.17,19.5344]
[1730210943945,26.91686755,179.18,179.17,19.5344]
[1730210944637,26.91686755,179.18,179.12,27.9132]
[1730210944841,26.91686755,179.16,179.12,47.4531]
[1730210945547,26.91686755,179.16,179.13,20.0]
[1730210945850,26.91686755,179.17,179.13,20.0]
[1730210946657,26.91686755,179.17,179.14,19.5377]
[1730210946860,0.1,179.26,179.14,19.5377]
[1730210946861,26.91686755,179.15,179.14,19.5377]
[1730210947761,26.91686755,179.15,179.12,27.9132]
[1730210947762,26.91686755,179.15,179.06,13.9618]
[1730210947941,26.91686755,179.1,179.06,13.9618]
[1730210948137,26.91686755,179.11,179.06,13.9618]
[1730210948454,26.91686755,179.08,179.06,13.9618]
[1730210948865,26.91686755,179.07,179.06,13.9618]
[1730210949051,26.91686755,179.08,179.06,13.9618]
[1730210949258,26.91686755,179.07,179.06,13.9618]
[1730210949649,26.91686755,179.07,178.98,0.1]
[1730210949650,26.91686755,179.07,179.02,19.5508]
[1730210949852,26.91686755,179.05,179.02,47.4806]
[1730210950568,26.91686755,179.04,179.02,47.4806]
[1730210950743,26.91686755,179.03,179.02,47.4806]
[1730210950944,26.91686755,179.03,179.02,19.5508]
[1730210951552,26.91686755,179.03,178.99,27.9336]
[1730210951762,26.91686755,179.01,178.99,27.9336]
[1730210951950,26.91686755,179.02,178.99,27.9336]
[1730210952160,26.91686755,179.0,178.99,27.9336]
[1730210952461,26.91686755,179.0,178.98,19.5552]
[1730210952764,26.91686755,178.99,178.98,19.5552]
[1730210953464,23.776884,178.97,178.79,0.1]
[1730210953770,23.776884,178.97,178.7,27.01686755]
[1730210953771,23.776884,178.86,178.7,27.01686755]
[1730210953946,26.91686755,178.76,178.69,27.01686755]
[1730210954149,26.91686755,178.76,178.7,0.1]
[1730210954351,26.91686755,178.76,178.7,27.01686755]
[1730210954566,26.91686755,178.77,178.71,28.0782]
[1730210954743,26.91686755,178.83,178.71,27.9782]
[1730210954744,26.91686755,178.75,178.71,27.9782]
[1730210955181,26.91686755,178.76,178.71,27.9782]
[1730210955346,26.91686755,178.77,178.73,0.1]
[1730210955547,26.91686755,178.78,178.73,0.1]
[1730210955773,26.91686755,178.81,178.75,27.01686755]
[1730210955951,26.91686755,178.79,178.75,20.1]
[1730210956146,26.91686755,178.78,178.74,47.5549]
[1730210956347,26.91686755,178.75,178.74,47.5549]
[1730210956652,43.96904695,178.75,178.74,47.5549]
[1730210956852,0.1,178.93,178.74,119.59744695]
[1730210957044,43.96904695,178.82,178.76,43.96904695]
[1730210957245,0.1,178.93,178.76,43.96904695]
[1730210957246,43.96904695,178.81,178.76,43.96904695]
[1730210957653,43.96904695,178.81,178.76,47.5496]
[1730210957860,43.96904695,178.82,178.76,91.51864695]
[1730210958055,43.96904695,178.8,178.77,20.0]
[1730210958858,43.96904695,178.81,178.77,20.0]
[1730210959252,43.96904695,178.8,178.77,20.0]
[1730210959653,43.96904695,178.78,178.77,25.5937]
[1730210960071,43.96904695,178.78,178.77,19.5781]
[1730210960275,43.96904695,178.8,178.77,19.5781]
[1730210960449,43.96904695,178.83,178.77,91.51594695]
[1730210960644,43.96904695,178.81,178.77,47.5469]
[1730210960850,43.96904695,178.92,178.78,44.06904695]
[1730210961053,43.96904695,178.92,178.79,43.96904695]
[1730210961054,43.96904695,178.85,178.79,43.96904695]
[1730210961275,43.96904695,178.92,178.78,0.1]
[1730210961276,43.96904695,178.83,178.78,44.06904695]
[1730210961572,43.96904695,178.83,178.79,20.0]
[1730210961873,43.96904695,178.83,178.81,20.0]
[1730210962072,43.96904695,178.82,178.81,20.0]
[1730210962274,43.96904695,178.82,178.8,19.5749]
[1730210962577,43.96904695,178.81,178.8,19.5749]
[1730210962753,43.96904695,178.81,178.8,19.21649327]
[1730210963571,43.96904695,178.81,178.8,13.9821]
[1730210963749,43.96904695,178.81,178.8,19.5749]
[1730210964766,43.96904695,178.82,178.8,19.5749]
[1730210965278,43.96904695,178.84,178.8,19.5749]
[1730210965482,43.96904695,178.85,178.8,19.5749]
[1730210965981,43.96904695,178.87,178.81,63.96904695]
[1730210966653,43.96904695,178.9,178.85,43.96904695]
[1730210966865,43.96904695,178.92,178.87,43.96904695]
[1730210967152,43.96904695,178.95,178.89,43.96904695]
[1730210967563,43.96904695,178.94,178.89,43.96904695]
[1730210967977,43.96904695,178.92,178.9,13.9742]
[1730210968181,43.96904695,178.93,178.9,13.9742]
[1730210968551,43.96904695,179.01,178.9,41.9227]
[1730210968552,43.96904695,178.91,178.9,41.9227]
[1730210969173,43.96904695,178.92,178.9,41.9227]
[1730210969376,43.96904695,178.93,178.9,41.9227]
[1730210969764,43.96904695,178.96,178.91,20.0]
[1730210970067,43.96904695,178.97,178.92,47.5071]
[1730210970285,43.96904695,178.98,178.93,63.96904695]
[1730210970456,43.96904695,179.0,178.95,43.96904695]
[1730210970657,43.96904695,179.0,178.96,20.0]
[1730210970953,43.96904695,179.01,178.96,63.96904695]
[1730210971267,43.96904695,179.03,178.98,43.96904695]
[1730210971785,43.96904695,179.05,179.0,20.0]
[1730210971968,43.96904695,179.04,179.01,19.5519]
[1730210972158,43.96904695,179.06,179.01,19.5519]
[1730210972364,43.96904695,179.07,179.01,63.52094695]
[1730210972559,6.6285,179.16,179.03,43.96904695]
[1730210972560,43.96904695,179.09,179.03,43.96904695]
[1730210972784,43.96904695,179.09,179.05,20.0]
[1730210972959,43.96904695,179.08,179.05,20.0]
[1730210973160,43.96904695,179.09,179.05,20.0]
[1730210973359,43.96904695,179.12,179.06,43.96904695]
[1730210973570,43.96904695,179.12,179.07,20.0]
[1730210973772,43.96904695,179.12,179.07,63.96904695]
[1730210973979,43.96904695,179.12,179.08,19.5442]
[1730210974180,6.5498,179.22,179.09,43.96904695]
[1730210974181,43.96904695,179.14,179.09,43.96904695]
[1730210974382,43.96904695,179.14,179.08,47.4646]
[1730210974383,43.96904695,179.13,179.08,47.4646]
[1730210974885,43.96904695,179.11,179.08,47.4646]
[1730210975382,43.96904695,179.09,179.08,47.4646]
[1730210975570,43.96904695,179.1,179.08,47.4646]
[1730210975956,43.96904695,179.11,179.08,41.8806]
[1730210976156,43.96904695,179.13,179.08,41.8806]
[1730210976786,43.96904695,179.12,179.08,41.8806]
[1730210976987,43.96904695,179.09,179.08,41.8806]
[1730210977166,43.96904695,179.09,179.08,13.9602]
[1730210977870,43.96904695,179.09,179.01,27.9305]
[1730210978174,43.96904695,179.04,179.01,27.9305]
[1730210978583,43.96904695,179.03,179.01,27.9305]
[1730210978986,43.96904695,179.02,179.01,27.9305]
[1730210979279,43.96904695,179.03,179.01,27.9305]
[1730210979475,43.96904695,179.04,179.01,27.9305]
[1730210979657,43.96904695,179.03,179.01,27.9305]
[1730210979857,43.96904695,179.02,179.01,27.9305]
[1730210980054,43.96904695,179.02,178.98,19.5552]
[1730210980283,43.96904695,179.0,178.98,19.5552]
[1730210980478,43.96904695,179.02,178.98,47.4912]
[1730210980782,43.96904695,179.04,178.99,50.82921515]
[1730210981195,43.96904695,179.06,179.0,43.96904695]
[1730210981577,43.96904695,179.05,178.99,50.82921515]
[1730210981880,43.96904695,179.04,178.99,6.8601682]
[1730210982089,43.96904695,179.04,179.0,47.4858]
[1730210982399,43.96904695,179.03,179.0,47.4858]
[1730210983168,43.96904695,179.01,179.0,19.5529]
[1730210983980,87.9380939,179.01,179.0,19.5529]
[1730210984287,87.9380939,179.01,178.92,47.5071]
[1730210984591,43.96904695,179.01,178.96,43.96904695]
[1730210984889,43.96904695,179.02,178.97,50.82921515]
[1730210985397,43.96904695,179.03,178.98,20.0]
[1730210985686,43.96904695,179.01,178.98,20.0]
[1730210985866,43.96904695,178.99,178.94,20.0]
[1730210986063,43.96904695,178.97,178.94,20.0]
[1730210986370,43.96904695,178.98,178.95,19.5584]
[1730210986685,26.98775043,179.0,178.95,74.48685043]
[1730210986892,26.98775043,179.0,178.95,81.34701863]
[1730210987071,26.98775043,179.01,178.96,33.84791863]
[1730210987274,26.98775043,179.03,178.97,26.98775043]
[1730210987584,26.98775043,179.02,178.97,33.84791863]
[1730210987783,26.98775043,179.01,178.98,20.0]
[1730210987970,26.98775043,178.99,178.96,20.0]
[1730210988173,26.98775043,178.99,178.97,19.5563]
[1730210988488,26.98775043,178.98,178.97,19.5563]
[1730210988892,26.98775043,178.99,178.97,47.4939]
[1730210989391,26.98775043,179.02,178.97,47.4939]
[1730210989573,26.98775043,179.02,178.98,20.0]
[1730210990289,5.81358526,179.08,178.98,20.0]
[1730210990290,26.98775043,179.01,178.99,47.4886]
[1730210990598,26.98775043,179.0,178.99,47.4886]
[1730210991487,26.98775043,179.0,178.99,19.5541]
[1730210992391,26.98775043,179.0,178.95,27.9407]
[1730210992593,26.98775043,179.01,178.95,54.92845043]
[1730210992893,26.98775043,179.02,178.97,46.98775043]
[1730210993098,26.98775043,179.02,178.97,20.0]
[1730210993395,26.98775043,179.03,178.98,26.98775043]
[1730210993790,26.98775043,179.02,178.97,53.84791863]
[1730210993995,26.98775043,179.02,178.97,26.8601682]
[1730210994376,26.98775043,179.03,178.98,26.98775043]
[1730210994576,26.98775043,179.03,178.98,74.47895043]
[1730210995591,26.98775043,179.05,179.0,26.98775043]
[1730210995901,6.3978,179.09,178.99,20.0]
[1730210996077,26.98775043,179.05,179.0,26.98775043]
[1730210996278,26.98775043,179.04,178.99,46.98775043]
[1730210996473,26.98775043,179.06,179.01,46.98775043]
[1730210997581,26.98775043,179.07,179.01,46.98775043]
[1730210997778,26.98775043,179.09,179.04,26.98775043]
[1730210997994,26.98775043,179.05,179.02,20.0]
[1730210998196,26.98775043,179.03,179.01,6.8601682]
[1730210998495,26.98775043,179.02,179.0,69.8322]
[1730210998895,26.98775043,179.03,179.0,69.8322]
[1730210999502,26.98775043,179.04,179.0,69.8322]
[1730211000499,26.98775043,179.01,179.0,75.4187]
[1730211000876,26.98775043,179.01,179.0,19.5529]
[1730211002418,26.98775043,179.03,178.98,26.98775043]
[1730211002703,26.98775043,179.04,178.99,33.84791863]
[1730211003609,26.98775043,179.01,178.96,102.42355043]
[1730211004404,26.98775043,179.0,178.96,75.4358]
[1730211004900,26.98775043,179.02,178.97,26.98775043]
[1730211005104,26.98775043,179.03,178.98,26.98775043]
[1730211005279,26.98775043,179.03,178.98,6.8601682]
[1730211005480,26.98775043,179.01,178.98,6.8601682]
[1730211005682,26.98775043,179.01,178.96,102.42355043]
[1730211006302,26.98775043,179.0,178.96,75.4358]
[1730211007416,26.98775043,179.1,178.96,75.4358]
[1730211007417,26.98775043,178.97,178.96,75.4358]
[1730211008103,26.98775043,178.97,178.96,19.5574]
[1730211008614,26.98775043,178.97,178.91,27.9469]
[1730211008902,26.98775043,178.92,178.91,27.9469]
[1730211009598,26.98775043,178.92,178.89,0.0524531]
[1730211009910,26.98775043,178.9,178.89,0.0524531]
[1730211010702,26.98775043,178.83,178.8,47.539]
[1730211010914,26.98775043,178.84,178.8,47.539]
[1730211011280,26.98775043,178.83,178.8,47.539]
[1730211011482,26.98775043,178.85,178.8,75.5032]
[1730211011695,26.98775043,178.92,178.8,109.35111863]
[1730211011696,26.98775043,178.86,178.8,109.35111863]
[1730211011905,26.98775043,178.84,178.8,75.5032]
[1730211013105,26.98775043,178.89,178.83,26.98775043]
[1730211013304,26.98775043,178.89,178.83,33.84791863]
[1730211013482,26.98775043,178.88,178.83,33.84791863]
[1730211013806,5.91139464,179.0,178.85,26.98775043]
[1730211013992,5.91139464,179.0,178.8,75.6032]
[1730211013993,0.1,178.99,178.86,33.84791863]
[1730211014306,26.98775043,178.91,178.86,33.84791863]
[1730211014607,26.98775043,178.91,178.87,47.5204]
[1730211014984,26.98775043,178.92,178.87,74.50815043]
[1730211015195,26.98775043,178.94,178.89,26.98775043]
[1730211015507,26.98775043,178.99,178.93,26.98775043]
[1730211015691,26.98775043,179.0,178.95,26.98775043]
[1730211015883,26.98775043,179.04,178.98,26.98775043]
[1730211016088,26.98775043,179.03,178.98,26.98775043]
[1730211016285,26.98775043,179.03,178.97,26.98775043]
[1730211016493,26.98775043,179.02,178.97,26.98775043]
[1730211016791,26.98775043,179.01,178.98,41.904]
[1730211016982,26.98775043,179.02,178.98,41.904]
[1730211017177,26.98775043,179.0,178.98,41.904]